fUSD/lending_fUSD_20241114
["ID","MTS","AMOUNT","RATE_DAILY","PERIOD"]
[342232590,1731606639669,-150.0,9.918e-05,2]
[342232591,1731606639679,-150.0,9.927e-05,2]
[342232592,1731606639690,-150.0,9.928e-05,2]
[342232593,1731606639699,-150.0,9.93e-05,2]
[342232594,1731606639710,-1368.045,9.933e-05,2]
[342232595,1731606639720,-174.685,9.938e-05,2]
[342232596,1731606639729,-150.0,9.939e-05,2]
[342232597,1731606639739,-150.0,9.944e-05,2]
[342232598,1731606639748,-150.0,9.95e-05,2]
[342232599,1731606639757,-150.0,9.953e-05,2]
[342232600,1731606639766,-150.0,9.957e-05,2]
[342232601,1731606639776,-150.0,9.959e-05,2]
[342232602,1731606639785,-150.0,9.96e-05,2]
[342232603,1731606639795,-150.0,9.962e-05,2]
[342232604,1731606639804,-150.0,9.965e-05,2]
[342232605,1731606639813,-1000.0,9.968e-05,2]
[342232606,1731606639821,-150.0,9.97e-05,2]
[342232607,1731606639831,-500.0,9.973e-05,2]
[342232608,1731606639841,-500.0,9.973e-05,2]
[342232609,1731606639850,-432.11731768,9.973e-05,2]
[342232610,1731606639860,-150.0,9.973e-05,2]
[342232611,1731606639869,-150.0,9.975e-05,2]
[342232612,1731606639879,-150.0,9.977e-05,2]
[342232613,1731606639889,-150.0,9.977e-05,2]
[342232614,1731606639899,-198.5323584,9.981e-05,2]
[342232615,1731606639909,-6952.7350536,9.981e-05,2]
[342232616,1731606639918,-1940.59203581,9.981e-05,2]
[342232617,1731606639932,-794.31227199,9.981e-05,2]
[342232618,1731606639942,-406.2899136,9.988e-05,2]
[342232619,1731606639951,-665.6,9.992e-05,2]
[342232620,1731606639961,-247.88528309,9.992e-05,2]
[342232621,1731606639971,-150.0,9.992e-05,2]
[342232622,1731606639980,-32420.29468176,9.993e-05,2]
[342232623,1731606640370,-3959.55,9.993e-05,2]
[342232624,1731606640381,-255406.00333692,9.993e-05,2]
[342232625,1731606640393,-4077.97849393,9.993e-05,2]
[342232626,1731606640497,-359.94924997,9.993e-05,2]
[342232627,1731606640508,-470.129,9.993e-05,2]
[342232628,1731606640521,-2086.1307981,9.993e-05,2]
[342232629,1731606640532,-2673.63002638,9.993e-05,2]
[342232630,1731606640543,-355.8603,9.993e-05,2]
[342232642,1731606643354,-7197.28173782,9.993e-05,2]
[342232643,1731606643365,-2806.6757734,9.993e-05,2]
[342232644,1731606643377,-6157.02620164,9.993e-05,2]
[342232645,1731606643459,-26723.4,9.993e-05,2]
[342232646,1731606643472,-23034.6,9.993e-05,2]
[342232647,1731606643485,-2836.3299994,9.993e-05,2]
[342232648,1731606643566,-6891.98730467,9.993e-05,2]
[342232649,1731606643577,-1757.80606308,9.993e-05,2]
[342232650,1731606643588,-7238.35879704,9.993e-05,2]
[342232651,1731606643599,-7315.09432345,9.993e-05,2]
[342232728,1731606646292,-299.6465502,9.981e-05,2]
[342232729,1731606646302,-1965.46156504,9.993e-05,2]
[342232730,1731606646314,-755.0,9.993e-05,2]
[342232731,1731606646325,-343.09402015,9.993e-05,2]
[342232732,1731606646387,-801.783865,9.993e-05,2]
[342232733,1731606646399,-1518.0,9.993e-05,2]
[342232734,1731606646424,-261.36577813,9.993e-05,2]
[342232735,1731606646436,-272.02387788,9.993e-05,2]
[342232736,1731606646472,-7981.18525021,9.993e-05,2]
[342232737,1731606646486,-8927.8,9.993e-05,2]
[342232739,1731606696980,36.4502,8.882e-05,2]
[342232742,1731606845473,-9182.55790209,0.00034363,120]
[342232743,1731606845495,-817.44209791,0.00034363,120]
[342232744,1731607129998,-1376.91,8.219e-05,2]
[342232745,1731607130024,-218.4798,8.882e-05,2]
[342232746,1731607130050,-1000.0,9.141e-05,2]
[342232747,1731607130077,-1361.19,9.186e-05,2]
[342232748,1731607130102,-250.0,9.219e-05,2]
[342232749,1731607130128,-206.99,9.28e-05,2]
[342232750,1731607130156,-386.04,9.308e-05,2]
[342232751,1731607130181,-150.0,9.892e-05,2]
[342232752,1731607130205,-4821.3468,9.893e-05,2]
[342232753,1731607130229,-4229.0434,9.893e-05,2]
[342232762,1731607642097,-300.8,8.926e-05,2]
[342232763,1731607642132,-168.65,9.275e-05,2]
[342232764,1731607642158,-250.0,9.28e-05,2]
[342232765,1731607642180,-250.0,9.353e-05,2]
[342232766,1731607642201,-102.07388226,9.4e-05,2]
[342232767,1731607648101,-897.92611774,9.4e-05,2]
[342232768,1731607648125,-150.0,9.727e-05,2]
[342232769,1731607648150,-150.0,9.731e-05,2]
[342232770,1731607648173,-150.0,9.732e-05,2]
[342232771,1731607648198,-150.0,9.732e-05,2]
[342232772,1731607648223,-150.0,9.743e-05,2]
[342232773,1731607648251,-150.0,9.743e-05,2]
[342232774,1731607648274,-150.0,9.746e-05,2]
[342232775,1731607648296,-150.0,9.757e-05,2]
[342232776,1731607648320,-150.0,9.766e-05,2]
[342232777,1731607648342,-150.0,9.767e-05,2]
[342232778,1731607648364,-150.0,9.78e-05,2]
[342232779,1731607648387,-150.0,9.787e-05,2]
[342232780,1731607648408,-150.0,9.788e-05,2]
[342232781,1731607648430,-150.0,9.789e-05,2]
[342232782,1731607648454,-150.0,9.795e-05,2]
[342232783,1731607648477,-150.0,9.795e-05,2]
[342232784,1731607648504,-150.0,9.814e-05,2]
[342232785,1731607648527,-150.0,9.817e-05,2]
[342232786,1731607648552,-150.0,9.818e-05,2]
[342232787,1731607648575,-150.0,9.825e-05,2]
[342232788,1731607648598,-150.0,9.825e-05,2]
[342232789,1731607648622,-150.0,9.829e-05,2]
[342232790,1731607648645,-150.0,9.838e-05,2]
[342232791,1731607648668,-150.0,9.838e-05,2]
[342232792,1731607648690,-150.0,9.849e-05,2]
[342232793,1731607648713,-150.0,9.849e-05,2]
[342232794,1731607648738,-150.0,9.862e-05,2]
[342232795,1731607648760,-150.0,9.862e-05,2]
[342232796,1731607648783,-150.0,9.863e-05,2]
[342232797,1731607648809,-150.0,9.864e-05,2]
[342232798,1731607648833,-150.0,9.872e-05,2]
[342232799,1731607648855,-150.0,9.877e-05,2]
[342232800,1731607648881,-150.0,9.882e-05,2]
[342232801,1731607648904,-150.0,9.884e-05,2]
[342232802,1731607648928,-150.0,9.886e-05,2]
[342232803,1731607648951,-150.0,9.89e-05,2]
[342232804,1731607648974,-5627.1859,9.893e-05,2]
[342232805,1731607648999,-213.21596968,9.893e-05,2]
[342232807,1731607760109,-3373.583458,8.929e-05,2]
[342232814,1731607831737,-1538.46,8.219e-05,2]
[342232815,1731607831747,-20526.416542,8.929e-05,2]
[342232816,1731607831758,-150.0,9.726e-05,2]
[342232817,1731607831768,-150.0,9.738e-05,2]
[342232818,1731607831778,-150.0,9.74e-05,2]
[342232819,1731607831788,-150.0,9.743e-05,2]
[342232820,1731607831798,-150.0,9.752e-05,2]
[342232821,1731607831807,-150.0,9.76e-05,2]
[342232823,1731607831817,-150.0,9.766e-05,2]
[342232825,1731607831827,-150.0,9.767e-05,2]
[342232827,1731607831838,-151.03,9.77e-05,2]
[342232828,1731607831848,-150.0,9.778e-05,2]
[342232830,1731607831858,-205.31286026,9.794e-05,2]
[342232832,1731607831867,-1727.45,9.794e-05,2]
[342232834,1731607831879,-150.0,9.798e-05,2]
[342232836,1731607831889,-150.0,9.803e-05,2]
[342232838,1731607831899,-150.0,9.811e-05,2]
[342232840,1731607831908,-150.0,9.813e-05,2]
[342232842,1731607831917,-150.0,9.816e-05,2]
[342232843,1731607831928,-150.0,9.862e-05,2]
[342232845,1731607831938,-150.0,9.885e-05,2]
[342232847,1731607831948,-150.0,9.892e-05,2]
[342232849,1731607831957,-1124.52173032,9.893e-05,2]
[342232851,1731607831967,-4229.0434,9.893e-05,2]
[342232853,1731607831977,-4821.3468,9.893e-05,2]
[342232855,1731607831986,-71549.1979,9.893e-05,2]
[342232857,1731607831996,-931.6229,9.893e-05,2]
[342232859,1731607832005,-2457.1632,9.893e-05,2]
[342232861,1731607832015,-2500.0,9.893e-05,2]
[342232863,1731607832024,-2500.0,9.893e-05,2]
[342232865,1731607832033,-150.0,9.893e-05,2]
[342232867,1731607832043,-150.0,9.895e-05,2]
[342232869,1731607832052,-150.0,9.895e-05,2]
[342232871,1731607832061,-150.0,9.895e-05,2]
[342232873,1731607832070,-150.0,9.897e-05,2]
[342232875,1731607832080,-150.0,9.899e-05,2]
[342232877,1731607832089,-9000.0,9.9e-05,2]
[342232879,1731607832098,-1728.0,9.9e-05,2]
[342232881,1731607832108,-150.0,9.901e-05,2]
[342232883,1731607832117,-150.0,9.902e-05,2]
[342232885,1731607832131,-150.0,9.905e-05,2]
[342232888,1731607832141,-300.0,9.91e-05,2]
[342232890,1731607832150,-150.0,9.913e-05,2]
[342232892,1731607832160,-150.0,9.913e-05,2]
[342232894,1731607832169,-500.0,9.913e-05,2]
[342232896,1731607832178,-150.0,9.915e-05,2]
[342232898,1731607832188,-150.0,9.917e-05,2]
[342232900,1731607832197,-150.0,9.919e-05,2]
[342232902,1731607832207,-150.0,9.923e-05,2]
[342232904,1731607832216,-150.0,9.924e-05,2]
[342232906,1731607832225,-150.0,9.926e-05,2]
[342232908,1731607832234,-150.0,9.926e-05,2]
[342232910,1731607832243,-150.0,9.926e-05,2]
[342232912,1731607832252,-875.549,9.928e-05,2]
[342232914,1731607832262,-150.0,9.928e-05,2]
[342232916,1731607832271,-150.0,9.929e-05,2]
[342232918,1731607832282,-174.686,9.929e-05,2]
[342232920,1731607832292,-150.0,9.93e-05,2]
[342232922,1731607832301,-150.0,9.931e-05,2]
[342232924,1731607832310,-150.0,9.939e-05,2]
[342232926,1731607832320,-150.0,9.942e-05,2]
[342232928,1731607832329,-150.0,9.943e-05,2]
[342232930,1731607832338,-150.0,9.943e-05,2]
[342232932,1731607832348,-150.0,9.951e-05,2]
[342232933,1731607832357,-150.0,9.954e-05,2]
[342232935,1731607832367,-150.0,9.955e-05,2]
[342232938,1731607832379,-150.0,9.956e-05,2]
[342232939,1731607832388,-150.0,9.956e-05,2]
[342232942,1731607832398,-150.0,9.964e-05,2]
[342232944,1731607832407,-150.0,9.964e-05,2]
[342232945,1731607832416,-150.0,9.967e-05,2]
[342232947,1731607832426,-150.0,9.969e-05,2]
[342232949,1731607832435,-150.0,9.969e-05,2]
[342232952,1731607832444,-150.0,9.97e-05,2]
[342232954,1731607832454,-500.0,9.973e-05,2]
[342232955,1731607832463,-500.0,9.973e-05,2]
[342232958,1731607832473,-500.0,9.973e-05,2]
[342232959,1731607832482,-150.0,9.973e-05,2]
[342232962,1731607832492,-150.0,9.974e-05,2]
[342232964,1731607832501,-150.0,9.974e-05,2]
[342232966,1731607832511,-150.0,9.977e-05,2]
[342232968,1731607832520,-150.0,9.98e-05,2]
[342232970,1731607832530,-150.0,9.982e-05,2]
[342232972,1731607832539,-150.0,9.985e-05,2]
[342232974,1731607832549,-150.0,9.986e-05,2]
[342232976,1731607832558,-5933.0,9.988e-05,2]
[342232978,1731607832567,-206.741,9.988e-05,2]
[342232980,1731607832577,-243.259,9.988e-05,2]
[342232982,1731607832585,-1160.0,9.988e-05,2]
[342232984,1731607832595,-13639.0,9.988e-05,2]
[342232986,1731607832604,-150.0,9.988e-05,2]
[342232987,1731607832613,-150.0,9.992e-05,2]
[342232990,1731607832625,-186849.32933599,9.993e-05,2]
[342232992,1731607832639,-13981.59895966,9.993e-05,2]
[342233399,1731607837527,-1000.0,8.898e-05,2]
[342233400,1731607837538,-1091.0,9.988e-05,2]
[342233401,1731607837549,-13185.999,9.993e-05,2]
[342233402,1731607837578,-448316.2457901,9.993e-05,2]
[342233403,1731607837743,-827.33,9.993e-05,2]
[342233471,1731607840642,-3127.44999999,9.993e-05,2]
[342233472,1731607840654,-4968.6,9.993e-05,2]
[342233478,1731607842598,-150.0,9.741e-05,2]
[342233479,1731607842607,-150.0,9.742e-05,2]
[342233480,1731607842617,-150.0,9.756e-05,2]
[342233481,1731607842627,-150.0,9.808e-05,2]
[342233482,1731607842641,-150.0,9.813e-05,2]
[342233483,1731607842651,-300.0,9.838e-05,2]
[342233484,1731607842660,-150.0,9.843e-05,2]
[342233485,1731607842670,-150.0,9.87e-05,2]
[342233486,1731607842680,-150.0,9.884e-05,2]
[342233487,1731607842689,-150.0,9.937e-05,2]
[342233488,1731607842698,-150.0,9.967e-05,2]
[342233489,1731607842708,-150.0,9.97e-05,2]
[342233490,1731607842717,-150.0,9.976e-05,2]
[342233491,1731607842728,-2486.96644826,9.993e-05,2]
[342233492,1731607842740,-3475.55234683,9.993e-05,2]
[342233493,1731607842751,-22773.80358563,9.993e-05,2]
[342233494,1731607842768,-1794.96276,9.993e-05,2]
[342233495,1731607842880,-1702685.00000047,9.993e-05,2]
[342233502,1731607845781,-351.553744,9.973e-05,2]
[342233503,1731607845793,-148.446256,9.973e-05,2]
[342233504,1731607845803,-1634.662194,9.993e-05,2]
[342233505,1731607845826,-584.53465609,9.993e-05,2]
[342233512,1731607859033,-9544634.10239122,9.993e-05,2]
[342233513,1731607859042,-680.30383267,9.993e-05,2]
[342233514,1731607859051,-702.89446563,9.993e-05,2]
[342233515,1731607859060,-150.0,9.996e-05,2]
[342233516,1731607859069,-680.30383265,9.997e-05,2]
[342233517,1731607859079,-702.89446561,9.997e-05,2]
[342233518,1731607859088,-150.0,9.999e-05,2]
[342233519,1731607859097,-220.0,9.999e-05,2]
[342233520,1731607859106,-200.0,9.999e-05,2]
[342233521,1731607859115,-241.196,9.999e-05,2]
[342233522,1731607859124,-1335.882,9.999e-05,2]
[342233523,1731607859133,-584.415,9.999e-05,2]
[342233524,1731607859142,-563.0,9.999e-05,2]
[342233525,1731607859152,-1992.0,9.999e-05,2]
[342233526,1731607859161,-628.0,9.999e-05,2]
[342233527,1731607859170,-150.502,9.999e-05,2]
[342233528,1731607859180,-618.919,9.999e-05,2]
[342233529,1731607859190,-1985.304,9.999e-05,2]
[342233530,1731607859199,-1259.0,9.999e-05,2]
[342233531,1731607859208,-829.0,9.999e-05,2]
[342233532,1731607859217,-921.0,9.999e-05,2]
[342233533,1731607859226,-3746.0,9.999e-05,2]
[342233534,1731607859235,-3489.0,9.999e-05,2]
[342233535,1731607859244,-2163.58533584,9.999e-05,2]
[342233536,1731607859254,-150.0,9.999e-05,2]
[342233537,1731607859263,-31546.0,0.0001,2]
[342233538,1731607859273,-6699726.6437915,0.0001,2]
[342233539,1731607859283,-1000.0,0.0001,2]
[342233540,1731607859292,-626257.01902459,0.0001,2]
[342233541,1731607859304,-1000.0,0.0001,2]
[342233542,1731607859314,-1000.0,0.0001,2]
[342233543,1731607859326,-1000.0,0.0001,2]
[342233544,1731607859336,-213281.81430117,0.0001,2]
[342233545,1731607859346,-1000.0,0.0001,2]
[342233546,1731607859356,-1000.0,0.0001,2]
[342233547,1731607859366,-12786.94505322,0.0001,2]
[342233548,1731607859375,-7827812.62937982,0.0001,2]
[342233549,1731607860689,-731218.93533659,0.0001,2]
[342233557,1731608835107,-1461.53,8.219e-05,2]
[342233558,1731608835136,-250.0,8.815e-05,2]
[342233559,1731608835162,-1000.0,8.819e-05,2]
[342233560,1731608835191,-2110.56145053,8.833e-05,2]
[342233563,1731608946095,-191.79,8.812e-05,2]
[342233564,1731608946117,-1852.42,8.824e-05,2]
[342233565,1731608946139,-300.0,8.832e-05,2]
[342233566,1731608946163,-21789.43854947,8.833e-05,2]
[342233567,1731608946185,-559.36,8.834e-05,2]
[342233568,1731608946207,-1773.49,8.887e-05,2]
[342233569,1731608946239,-250.0,8.887e-05,2]
[342233570,1731608946261,-164.42,8.898e-05,2]
[342233571,1731608946281,-150.0,8.999e-05,2]
[342233572,1731608946308,-500.0,9e-05,2]
[342233573,1731608946328,-500.0,9e-05,2]
[342233574,1731608946348,-500.0,9e-05,2]
[342233575,1731608946735,-500.0,9e-05,2]
[342233576,1731608946756,-500.0,9e-05,2]
[342233577,1731608946776,-500.0,9e-05,2]
[342233578,1731608946797,-500.0,9e-05,2]
[342233579,1731608946817,-500.0,9e-05,2]
[342233580,1731608946839,-500.0,9e-05,2]
[342233581,1731608946860,-500.0,9e-05,2]
[342233582,1731608946880,-500.0,9e-05,2]
[342233583,1731608946901,-500.0,9e-05,2]
[342233584,1731608946921,-500.0,9e-05,2]
[342233585,1731608946942,-500.0,9e-05,2]
[342233586,1731608946963,-500.0,9e-05,2]
[342233587,1731608946985,-500.0,9e-05,2]
[342233588,1731608947006,-500.0,9e-05,2]
[342233589,1731608947025,-500.0,9e-05,2]
[342233590,1731608947046,-500.0,9e-05,2]
[342233591,1731608947068,-500.0,9e-05,2]
[342233592,1731608947088,-500.0,9e-05,2]
[342233593,1731608947108,-500.0,9e-05,2]
[342233594,1731608947128,-315.04,9e-05,2]
[342233595,1731608947149,-509.93,9e-05,2]
[342233596,1731608947169,-500.0,9e-05,2]
[342233597,1731608947189,-500.0,9e-05,2]
[342233598,1731608947210,-500.0,9e-05,2]
[342233599,1731608947237,-500.0,9e-05,2]
[342233600,1731608947259,-413.75406719,9e-05,2]
[342233601,1731608964101,-980.0,8.812e-05,2]
[342233602,1731608966148,-258.348972,8.812e-05,2]
[342233634,1731609031676,-46.941028,8.812e-05,2]
[342233636,1731609031685,-150.0,8.999e-05,2]
[342233638,1731609031695,-86.24593281,9e-05,2]
[342233640,1731609031705,-500.0,9e-05,2]
[342233642,1731609031715,-456.9,9e-05,2]
[342233644,1731609031724,-500.0,9e-05,2]
[342233645,1731609031734,-500.0,9e-05,2]
[342233646,1731609031743,-500.0,9e-05,2]
[342233647,1731609031753,-500.0,9e-05,2]
[342233648,1731609031762,-500.0,9e-05,2]
[342233649,1731609031773,-500.0,9e-05,2]
[342233650,1731609031782,-500.0,9e-05,2]
[342233651,1731609031792,-500.0,9e-05,2]
[342233652,1731609031801,-356.22,9e-05,2]
[342233653,1731609031811,-500.0,9e-05,2]
[342233654,1731609031820,-500.0,9e-05,2]
[342233655,1731609031830,-500.0,9e-05,2]
[342233656,1731609031839,-500.0,9e-05,2]
[342233657,1731609031848,-500.0,9e-05,2]
[342233658,1731609031858,-500.0,9e-05,2]
[342233659,1731609031867,-500.0,9e-05,2]
[342233660,1731609031877,-500.0,9e-05,2]
[342233661,1731609031886,-500.0,9e-05,2]
[342233662,1731609031896,-629.19,9e-05,2]
[342233663,1731609031906,-500.0,9e-05,2]
[342233664,1731609031915,-500.0,9e-05,2]
[342233665,1731609031925,-500.0,9e-05,2]
[342233666,1731609031934,-500.0,9e-05,2]
[342233667,1731609031943,-500.0,9e-05,2]
[342233668,1731609031953,-500.0,9e-05,2]
[342233669,1731609031962,-500.0,9e-05,2]
[342233670,1731609031971,-500.0,9e-05,2]
[342233671,1731609031981,-500.0,9e-05,2]
[342233672,1731609031991,-500.0,9e-05,2]
[342233673,1731609032001,-500.0,9e-05,2]
[342233674,1731609032011,-500.0,9e-05,2]
[342233675,1731609032020,-500.0,9e-05,2]
[342233676,1731609032032,-500.0,9e-05,2]
[342233677,1731609032041,-500.0,9e-05,2]
[342233678,1731609032051,-500.0,9e-05,2]
[342233679,1731609032061,-150.0,9e-05,2]
[342233680,1731609032071,-500.0,9e-05,2]
[342233681,1731609032080,-500.0,9e-05,2]
[342233682,1731609032089,-500.0,9e-05,2]
[342233684,1731609032099,-500.0,9e-05,2]
[342233686,1731609032108,-763.3,9.041e-05,2]
[342233688,1731609032118,-763.3,9.041e-05,2]
[342233689,1731609032127,-763.3,9.041e-05,2]
[342233690,1731609032136,-763.3,9.041e-05,2]
[342233691,1731609032145,-731.52,9.178e-05,2]
[342233692,1731609032156,-389.93,9.178e-05,2]
[342233694,1731609032165,-161.156206,9.6e-05,2]
[342233696,1731609032176,-432.72,9.7e-05,2]
[342233698,1731609032186,-150.0,9.707e-05,2]
[342233700,1731609032195,-150.0,9.719e-05,2]
[342233702,1731609032204,-150.0,9.737e-05,2]
[342233704,1731609032214,-150.0,9.737e-05,2]
[342233705,1731609032223,-1014.25,9.742e-05,2]
[342233706,1731609032237,-1014.25,9.745e-05,2]
[342233707,1731609032258,-1014.25,9.747e-05,2]
[342233708,1731609032274,-1014.25,9.75e-05,2]
[342233709,1731609032284,-1014.25,9.753e-05,2]
[342233710,1731609032294,-150.0,9.754e-05,2]
[342233711,1731609032307,-1014.25,9.755e-05,2]
[342233713,1731609032318,-150.0,9.756e-05,2]
[342233715,1731609032327,-1014.25,9.758e-05,2]
[342233717,1731609032337,-1014.25,9.76e-05,2]
[342233719,1731609032346,-1014.25,9.763e-05,2]
[342233721,1731609032355,-1014.25,9.765e-05,2]
[342233723,1731609032365,-1014.25,9.768e-05,2]
[342233725,1731609032374,-1014.25,9.771e-05,2]
[342233727,1731609032383,-1014.25,9.773e-05,2]
[342233729,1731609032392,-1014.25,9.776e-05,2]
[342233731,1731609032402,-1014.25,9.778e-05,2]
[342233733,1731609032411,-1014.25,9.781e-05,2]
[342233735,1731609032421,-1014.25,9.783e-05,2]
[342233737,1731609032431,-1014.25,9.786e-05,2]
[342233739,1731609032440,-1014.25,9.789e-05,2]
[342233741,1731609032449,-1014.25,9.791e-05,2]
[342233743,1731609032459,-150.0,9.794e-05,2]
[342233745,1731609032468,-150.0,9.797e-05,2]
[342233747,1731609032477,-150.0,9.797e-05,2]
[342233749,1731609032487,-150.0,9.802e-05,2]
[342233751,1731609032496,-150.0,9.815e-05,2]
[342233753,1731609032505,-150.0,9.817e-05,2]
[342233755,1731609032515,-150.0,9.823e-05,2]
[342233757,1731609032525,-150.0,9.84e-05,2]
[342233759,1731609032534,-150.0,9.858e-05,2]
[342233761,1731609032544,-150.0,9.87e-05,2]
[342233763,1731609032553,-150.0,9.88e-05,2]
[342233765,1731609032563,-150.0,9.889e-05,2]
[342233767,1731609032573,-17610.55676261,9.893e-05,2]
[342233771,1731609032599,-66475.37133739,9.893e-05,2]
[342233773,1731609032608,-16804.304,9.893e-05,2]
[342233775,1731609032618,-150.0,9.895e-05,2]
[342233777,1731609032628,-255.0,9.899e-05,2]
[342233779,1731609032637,-150.0,9.9e-05,2]
[342233781,1731609032646,-150.0,9.904e-05,2]
[342233783,1731609032655,-150.13,9.906e-05,2]
[342233785,1731609032665,-150.0,9.907e-05,2]
[342233787,1731609032675,-500.0,9.917e-05,2]
[342233789,1731609032684,-150.0,9.918e-05,2]
[342233791,1731609032693,-1000.0,9.922e-05,2]
[342233793,1731609032702,-1192.935,9.93e-05,2]
[342233795,1731609032711,-174.685,9.936e-05,2]
[342233797,1731609032721,-559.36,9.938e-05,2]
[342233799,1731609032731,-150.0,9.939e-05,2]
[342233801,1731609032740,-150.0,9.942e-05,2]
[342233803,1731609032750,-150.0,9.943e-05,2]
[342233805,1731609032759,-150.0,9.963e-05,2]
[342233807,1731609032768,-150.0,9.968e-05,2]
[342233809,1731609032779,-432.11731768,9.973e-05,2]
[342233811,1731609032788,-500.0,9.973e-05,2]
[342233813,1731609032797,-389138.90259454,9.98e-05,2]
[342233815,1731609032806,-1992.0,9.999e-05,2]
[342233817,1731609032816,-150.0,9.999e-05,2]
[342233819,1731609032825,-563.0,9.999e-05,2]
[342233821,1731609032835,-628.0,9.999e-05,2]
[342233823,1731609032844,-1924.0,9.999e-05,2]
[342233825,1731609032854,-560.0,9.999e-05,2]
[342233827,1731609032863,-1259.0,9.999e-05,2]
[342233829,1731609032873,-814.0,9.999e-05,2]
[342233831,1731609032882,-3489.0,9.999e-05,2]
[342233833,1731609032892,-3746.0,9.999e-05,2]
[342233835,1731609032901,-921.0,9.999e-05,2]
[342233837,1731609032911,-876.952,9.999e-05,2]
[342233839,1731609032920,-5933.0,9.999e-05,2]
[342233841,1731609032930,-150.0,9.999e-05,2]
[342233843,1731609032939,-1255.0,9.999e-05,2]
[342233845,1731609032949,-453.0,9.999e-05,2]
[342233847,1731609032958,-567.0,9.999e-05,2]
[342233849,1731609032968,-13639.0,9.999e-05,2]
[342233851,1731609032977,-933030.07465314,0.0001,2]
[342233853,1731609032990,-371535.0948994,0.0001,2]
[342233856,1731609033009,-565.94186721,0.0001,2]
[342234391,1731609038300,-500.0,9.973e-05,2]
[342234393,1731609038310,-1160.0,9.999e-05,2]
[342234395,1731609038320,-13294.831385,0.0001,2]
[342234397,1731609038332,-2067.38995001,0.0001,2]
[342234398,1731609038343,-7032.30919114,0.0001,2]
[342234399,1731609038353,-85173.02721333,0.0001,2]
[342234400,1731609038401,-1539.68924099,0.0001,2]
[342234401,1731609038416,-23679.24091524,0.0001,2]
[342234402,1731609038427,-614.872,0.0001,2]
[342234411,1731609039838,-420.93726371,0.0001,2]
[342234412,1731609039850,-3134.04903996,0.0001,2]
[342234413,1731609039861,-7700.0,0.0001,2]
[342234414,1731609039910,-16640.82188653,0.0001,2]
[342234415,1731609039921,-14581.17715028,0.0001,2]
[342234418,1731609040012,-2066.3350025,0.0001,2]
[342234465,1731609042787,-150.0,9.999e-05,2]
[342234466,1731609042796,-3490.0099914,0.0001,2]
[342234467,1731609042808,-17527.25486953,0.0001,2]
[342234468,1731609042819,-47894.40000053,0.0001,2]
[342234469,1731609042839,-8943.8,0.0001,2]
[342234472,1731609042894,-210432.43823565,0.0001,2]
[342234473,1731609042906,-1308.27403459,0.0001,2]
[342234474,1731609042960,-3579.9271163,0.0001,2]
[342234475,1731609043000,-3601.74828728,0.0001,2]
[342234476,1731609043011,-15924.82139884,0.0001,2]
[342234477,1731609043156,-318.58477756,0.0001,2]
[342234478,1731609043167,-65399.9999995,0.0001,2]
[342234487,1731609045721,-628.0,9.999e-05,2]
[342234488,1731609045731,-914.3,0.0001,2]
[342234489,1731609045742,-971.05340658,0.0001,2]
[342234490,1731609045767,-319707.07458885,0.0001,2]
[342234491,1731609045816,-563.12019954,0.0001,2]
[342234492,1731609045828,-1647.6433936,0.0001,2]
[342234493,1731609045960,-16093.6,0.0001,2]
[342234499,1731609328425,20000.0,0.00015,15]
[342234503,1731609950093,-758.01462945,8.219e-05,2]
[342234505,1731610146351,-692.49537055,8.219e-05,2]
[342234506,1731610146374,-680.92,8.253e-05,2]
[342234507,1731610146402,-2000.0,8.269e-05,2]
[342234508,1731610146424,-150.0,8.296e-05,2]
[342234509,1731610146446,-300.0,8.296e-05,2]